fUSD/lending_fUSD_20250328
["ID","MTS","AMOUNT","RATE_DAILY","PERIOD"]
[356778026,1743166252539,-514.0158834,0.00045205,120]
[356778027,1743166252548,-500.0,0.00045205,120]
[356778028,1743166252558,-417.03931835,0.00045205,120]
[356778029,1743166252567,-500.0,0.00045205,120]
[356778030,1743166252577,-500.0,0.00045205,120]
[356778031,1743166252586,-157.16549552,0.00045205,120]
[356778032,1743166252596,-500.0,0.00045205,120]
[356778033,1743166252606,-500.0,0.00045205,120]
[356778034,1743166252615,-500.0,0.00045205,120]
[356778035,1743166252625,-500.0,0.00045205,120]
[356778036,1743166252635,-156.34779539,0.00045205,120]
[356778037,1743166252644,-535.05434445,0.00045205,120]
[356778038,1743166252653,-622.31676725,0.00045205,120]
[356778039,1743166252663,-510.69583598,0.00045205,120]
[356778040,1743166252673,-642.73957944,0.00045205,120]
[356778041,1743166252682,-500.0,0.00045205,120]
[356778042,1743166252691,-500.0,0.00045205,120]
[356778043,1743166252701,-500.0,0.00045205,120]
[356778044,1743166252710,-500.0,0.00045205,120]
[356778045,1743166252720,-500.0,0.00045205,120]
[356778046,1743166252730,-500.0,0.00045205,120]
[356778047,1743166252739,-500.0,0.00045205,120]
[356778048,1743166252748,-623.05410952,0.00045205,120]
[356778049,1743166252757,-500.0,0.00045205,120]
[356778050,1743166252766,-500.0,0.00045205,120]
[356778051,1743166252776,-433.14940111,0.00045205,120]
[356778052,1743166252785,-500.0,0.00045205,120]
[356778053,1743166252795,-500.0,0.00045205,120]
[356778054,1743166252803,-500.0,0.00045205,120]
[356778055,1743166252813,-500.0,0.00045205,120]
[356778056,1743166252822,-500.0,0.00045205,120]
[356778057,1743166252832,-450.76547323,0.00045205,120]
[356778058,1743166252841,-500.0,0.00045205,120]
[356778059,1743166252851,-637.92945517,0.00045205,120]
[356778060,1743166252860,-509.54768815,0.00045205,120]
[356778061,1743166252869,-500.0,0.00045205,120]
[356778062,1743166252879,-499.99552592,0.00045205,120]
[356778063,1743166252888,-508.9326404,0.00045205,120]
[356778064,1743166252898,-500.0,0.00045205,120]
[356778065,1743166252907,-500.0,0.00045205,120]
[356778066,1743166252915,-500.0,0.00045205,120]
[356778067,1743166252925,-500.0,0.00045205,120]
[356778068,1743166252933,-500.0,0.00045205,120]
[356778069,1743166252942,-500.0,0.00045205,120]
[356778070,1743166252951,-346.84401122,0.00045205,120]
[356778071,1743166252961,-500.0,0.00045205,120]
[356778072,1743166252971,-549.63335425,0.00045205,120]
[356778073,1743166252980,-542.3138582,0.00045205,120]
[356778074,1743166252988,-508.64616875,0.00045205,120]
[356778075,1743166252997,-500.0,0.00045205,120]
[356778076,1743166253006,-181.44870564,0.00045205,120]
[356778077,1743166253016,-510.78641651,0.00045205,120]
[356778078,1743166253024,-648.77230519,0.00045205,120]
[356778079,1743166253033,-502.64971467,0.00045205,120]
[356778080,1743166253043,-500.0,0.00045205,120]
[356778081,1743166253051,-500.0,0.00045205,120]
[356778082,1743166253060,-377.73505127,0.00045205,120]
[356778083,1743166253071,-500.0,0.00045205,120]
[356778084,1743166253080,-500.0,0.00045205,120]
[356778085,1743166253089,-516.64450421,0.00045205,120]
[356778086,1743166253100,-500.0,0.00045205,120]
[356778087,1743166253111,-500.0,0.00045205,120]
[356778088,1743166253121,-290.49782228,0.00045205,120]
[356778089,1743166253130,-586.6734916,0.00045205,120]
[356778090,1743166253139,-500.0,0.00045205,7]
[356778091,1743166253149,-500.0,0.00045205,120]
[356778092,1743166253159,-500.0,0.00045205,7]
[356778093,1743166253168,-500.0,0.00045205,120]
[356778094,1743166253179,-500.0,0.00045205,7]
[356778095,1743166253187,-415.49034875,0.00045205,120]
[356778096,1743166253195,-500.0,0.00045205,120]
[356778097,1743166253204,-500.0,0.00045205,120]
[356778098,1743166253215,-500.0,0.00045205,120]
[356778099,1743166253224,-241.6028593,0.00045205,120]
[356778100,1743166253234,-501.55808701,0.00045205,120]
[356778101,1743166253243,-500.0,0.00045205,120]
[356778102,1743166253252,-500.0,0.00045205,120]
[356778103,1743166253262,-500.0,0.00045205,120]
[356778104,1743166253272,-622.75314249,0.00045205,120]
[356778105,1743166253282,-500.0,0.00045205,120]
[356778106,1743166253292,-500.0,0.00045205,120]
[356778107,1743166253302,-500.0,0.00045205,120]
[356778108,1743166253311,-500.0,0.00045205,120]
[356778109,1743166253321,-513.6422861,0.00045205,120]
[356778110,1743166253331,-600.0,0.00045205,120]
[356778111,1743166253340,-738.96911185,0.00045205,120]
[356778112,1743166253349,-567.01790895,0.00045205,120]
[356778113,1743166253359,-500.0,0.00045205,120]
[356778114,1743166253369,-544.52980404,0.00045205,120]
[356778115,1743166253379,-548.11762891,0.00045205,120]
[356778116,1743166253389,-231.84632577,0.00045205,120]
[356778117,1743166253398,-500.0,0.00045205,120]
[356778118,1743166253408,-519.17587732,0.00045205,120]
[356778119,1743166253418,-500.0,0.00045205,120]
[356778120,1743166253428,-500.0,0.00045205,120]
[356778121,1743166253532,-279.49550612,0.00045205,120]
[356778122,1743166253542,-500.0,0.00045205,120]
[356778123,1743166253552,-211.9555473,0.00045205,120]
[356778124,1743166253562,-2500.0,0.00045205,120]
[356778125,1743166253572,-500.0,0.00045205,120]
[356778126,1743166253581,-500.0,0.00045205,120]
[356778127,1743166253591,-500.0,0.00045205,120]
[356778128,1743166253600,-500.0,0.00045205,120]
[356778129,1743166253610,-500.0,0.00045205,120]
[356778130,1743166253620,-500.0,0.00045205,120]
[356778131,1743166253630,-500.0,0.00045205,120]
[356778132,1743166253639,-500.0,0.00045205,120]
[356778133,1743166253649,-379.59199123,0.00045205,120]
[356778134,1743166253659,-524.20734541,0.00045205,120]
[356778135,1743166253669,-305.04358588,0.00045205,30]
[356778136,1743166253679,-151.0,0.00045205,14]
[356778137,1743166253689,-151.0,0.00045205,14]
[356778138,1743166253699,-151.0,0.00045205,14]
[356778139,1743166253709,-900.0,0.00045205,16]
[356778140,1743166253722,-900.0,0.00045205,16]
[356778141,1743166253732,-900.0,0.00045205,16]
[356778142,1743166253742,-900.0,0.00045205,16]
[356778143,1743166253751,-900.0,0.00045205,16]
[356778144,1743166253761,-900.0,0.00045205,16]
[356778145,1743166253771,-900.0,0.00045205,16]
[356778146,1743166253781,-619.06925668,0.00045205,120]
[356778147,1743166253790,-900.0,0.00045205,16]
[356778148,1743166253800,-900.0,0.00045205,16]
[356778149,1743166253809,-964.49513284,0.00045205,16]
[356778150,1743166253820,-151.0,0.00045205,14]
[356778151,1743166253829,-283.411343,0.00045205,14]
[356778152,1743166253839,-500.0,0.00045205,120]
[356778153,1743166253848,-531.69724307,0.00045205,120]
[356778154,1743166253858,-500.0,0.00045205,120]
[356778155,1743166253867,-173.22027678,0.00045205,120]
[356778156,1743166253878,-500.0,0.00045205,120]
[356778157,1743166253887,-231.53519523,0.00045205,120]
[356778158,1743166253897,-308.9467723,0.00045205,120]
[356778159,1743166253907,-583.95100599,0.00045205,120]
[356778160,1743166253916,-500.0,0.00045205,120]
[356778161,1743166253925,-500.0,0.00045205,120]
[356778162,1743166253937,-199.97549583,0.00045205,120]
[356778163,1743166253946,-266.43833639,0.00045205,120]
[356778164,1743166253956,-520.59241274,0.00045205,120]
[356778165,1743166253967,-471.07432286,0.00045205,120]
[356778166,1743166253976,-636.52580654,0.00045205,120]
[356778167,1743166253986,-631.74747535,0.00045205,120]
[356778168,1743166253995,-585.52743388,0.00045205,120]
[356778169,1743166254005,-500.0,0.00045205,10]
[356778170,1743166254014,-500.0,0.00045205,10]
[356778171,1743166254024,-533.33910782,0.00045205,10]
[356778172,1743166254033,-500.0,0.00045205,120]
[356778173,1743166254044,-572.5199736,0.00045205,120]
[356778174,1743166254054,-500.0,0.00045205,120]
[356778175,1743166254063,-523.43923935,0.00045205,120]
[356778176,1743166254074,-521.72923886,0.00045205,120]
[356778177,1743166254083,-636.56002266,0.00045205,120]
[356778178,1743166254093,-560.95779101,0.00045205,120]
[356778179,1743166254104,-526.47105922,0.00045205,120]
[356778180,1743166254115,-500.0,0.00045205,120]
[356778181,1743166254124,-503.10528972,0.00045205,120]
[356778182,1743166254135,-552.95203723,0.00045205,120]
[356778183,1743166254145,-563.30220295,0.00045205,120]
[356778184,1743166254154,-500.0,0.00045205,120]
[356778185,1743166254164,-500.0,0.00045205,120]
[356778186,1743166254173,-507.13904625,0.00045205,120]
[356778187,1743166254184,-202.0309957,0.00045205,120]
[356778188,1743166254193,-500.0,0.00045205,120]
[356778189,1743166254203,-512.16049596,0.00045205,120]
[356778190,1743166254212,-500.0,0.00045205,120]
[356778191,1743166254223,-174.11675023,0.00045205,120]
[356778192,1743166254233,-603.14067738,0.00045205,120]
[356778193,1743166254242,-598.74522918,0.00045205,120]
[356778194,1743166254252,-508.67282078,0.00045205,120]
[356778195,1743166254261,-500.0,0.00045205,120]
[356778196,1743166254271,-520.38793627,0.00045205,120]
[356778197,1743166254280,-500.0,0.00045205,120]
[356778198,1743166254290,-500.0,0.00045205,120]
[356778199,1743166254299,-500.0,0.00045205,120]
[356778200,1743166254308,-173.31792392,0.00045205,120]
[356778201,1743166254318,-565.0592122,0.00045205,120]
[356778202,1743166254328,-500.0,0.00045205,120]
[356778203,1743166254338,-526.25982709,0.00045205,120]
[356778204,1743166254347,-500.0,0.00045205,120]
[356778205,1743166254356,-500.0,0.00045205,120]
[356778206,1743166254366,-500.0,0.00045205,120]
[356778207,1743166254376,-499.79859462,0.00045205,120]
[356778208,1743166254385,-580.94387503,0.00045205,120]
[356778209,1743166254395,-563.67900638,0.00045205,120]
[356778210,1743166254404,-644.30310224,0.00045205,120]
[356778211,1743166254414,-295.22964038,0.00045205,120]
[356778212,1743166254423,-500.0,0.00045205,120]
[356778213,1743166254432,-500.0,0.00045205,120]
[356778214,1743166254442,-259.51891128,0.00045205,120]
[356778215,1743166254452,-500.0,0.00045205,120]
[356778216,1743166254462,-500.0,0.00045205,120]
[356778217,1743166254475,-500.0,0.00045205,120]
[356778218,1743166254484,-500.0,0.00045205,120]
[356778219,1743166254495,-500.0,0.00045205,120]
[356778220,1743166254505,-500.0,0.00045205,120]
[356778221,1743166254515,-505.35967576,0.00045205,120]
[356778222,1743166254525,-500.0,0.00045205,120]
[356778223,1743166254535,-550.96889746,0.00045205,120]
[356778224,1743166254546,-500.0,0.00045205,120]
[356778225,1743166254555,-559.77964394,0.00045205,120]
[356778226,1743166254565,-500.0,0.00045205,120]
[356778227,1743166254576,-550.88839586,0.00045205,120]
[356778228,1743166254586,-500.0,0.00045205,120]
[356778229,1743166254596,-500.0,0.00045205,120]
[356778230,1743166254606,-500.0,0.00045205,120]
[356778231,1743166254615,-565.11872645,0.00045205,120]
[356778232,1743166254626,-500.0,0.00045205,120]
[356778233,1743166254635,-500.0,0.00045205,120]
[356778234,1743166254645,-617.21670712,0.00045205,120]
[356778235,1743166254655,-535.89343385,0.00045205,120]
[356778236,1743166254666,-500.0,0.00045205,120]
[356778237,1743166254675,-500.0,0.00045205,120]
[356778238,1743166254685,-549.48467529,0.00045205,120]
[356778239,1743166254695,-500.0,0.00045205,120]
[356778240,1743166254705,-500.0,0.00045205,120]
[356778241,1743166254717,-524.13273751,0.00045205,120]
[356778242,1743166254727,-500.0,0.00045205,120]
[356778243,1743166254737,-500.0,0.00045205,120]
[356778244,1743166254748,-500.0,0.00045205,120]
[356778245,1743166254757,-500.0,0.00045205,120]
[356778246,1743166254767,-500.0,0.00045205,120]
[356778247,1743166254776,-500.0,0.00045205,120]
[356778248,1743166254786,-534.82752961,0.00045205,120]
[356778249,1743166254796,-424.26809853,0.00045205,120]
[356778250,1743166254805,-500.0,0.00045205,120]
[356778251,1743166254815,-500.0,0.00045205,120]
[356778252,1743166254824,-545.56316184,0.00045205,120]
[356778253,1743166254834,-500.0,0.00045205,120]
[356778254,1743166254843,-337.09611868,0.00045205,120]
[356778255,1743166254853,-500.0,0.00045205,120]
[356778256,1743166254862,-500.0,0.00045205,120]
[356778257,1743166254871,-500.0,0.00045205,120]
[356778258,1743166254881,-531.64201945,0.00045205,120]
[356778259,1743166254890,-546.67790188,0.00045205,120]
[356778260,1743166254900,-500.0,0.00045205,120]
[356778261,1743166254909,-492.35562908,0.00045205,120]
[356778262,1743166254918,-509.36062477,0.00045205,120]
[356778263,1743166254929,-500.0,0.00045205,120]
[356778264,1743166254938,-500.0,0.00045205,120]
[356778265,1743166254948,-500.0,0.00045205,120]
[356778266,1743166254958,-500.0,0.00045205,120]
[356778267,1743166254969,-533.72300145,0.00045205,120]
[356778268,1743166254978,-500.0,0.00045205,120]
[356778269,1743166254987,-510.39691929,0.00045205,120]
[356778270,1743166254997,-500.0,0.00045205,120]
[356778271,1743166255007,-500.0,0.00045205,120]
[356778272,1743166255016,-500.0,0.00045205,120]
[356778273,1743166255026,-500.0,0.00045205,120]
[356778274,1743166255035,-569.49109234,0.00045205,120]
[356778275,1743166255045,-527.76547268,0.00045205,120]
[356778276,1743166255054,-469.69150961,0.00045205,120]
[356778277,1743166255063,-500.0,0.00045205,120]
[356778278,1743166255073,-500.0,0.00045205,120]
[356778279,1743166255083,-610.84016756,0.00045205,120]
[356778280,1743166255092,-500.0,0.00045205,120]
[356778281,1743166255103,-500.0,0.00045205,120]
[356778282,1743166255113,-500.0,0.00045205,120]
[356778283,1743166255123,-644.58402627,0.00045205,120]
[356778284,1743166255132,-518.51627866,0.00045205,120]
[356778285,1743166255143,-500.0,0.00045205,120]
[356778286,1743166255152,-500.0,0.00045205,120]
[356778287,1743166255162,-500.0,0.00045205,120]
[356778288,1743166255171,-500.0,0.00045205,120]
[356778289,1743166255182,-509.75136381,0.00045205,120]
[356778290,1743166255191,-500.0,0.00045205,120]
[356778291,1743166255201,-505.3509383,0.00045205,120]
[356778292,1743166255210,-627.58145671,0.00045205,120]
[356778293,1743166255221,-500.0,0.00045205,120]
[356778294,1743166255230,-500.0,0.00045205,120]
[356778295,1743166255239,-500.0,0.00045205,120]
[356778296,1743166255248,-500.0,0.00045205,120]
[356778297,1743166255257,-500.0,0.00045205,120]
[356778298,1743166255266,-500.0,0.00045205,120]
[356778299,1743166255275,-520.57790438,0.00045205,120]
[356778300,1743166255284,-555.76862464,0.00045205,120]
[356778301,1743166255293,-534.82346106,0.00045205,120]
[356778302,1743166255303,-500.0,0.00045205,120]
[356778303,1743166255312,-542.19807632,0.00045205,120]
[356778304,1743166255321,-192.34043649,0.00045205,120]
[356778305,1743166255330,-500.0,0.00045205,120]
[356778306,1743166255339,-500.0,0.00045205,120]
[356778307,1743166255347,-500.0,0.00045205,120]
[356778308,1743166255357,-154.6044553,0.00045205,120]
[356778309,1743166255366,-559.13826125,0.00045205,120]
[356778310,1743166255375,-336.18765034,0.00045205,120]
[356778311,1743166255384,-500.0,0.00045205,120]
[356778312,1743166255393,-500.0,0.00045205,120]
[356778313,1743166255402,-500.0,0.00045205,120]
[356778314,1743166255410,-500.0,0.00045205,120]
[356778315,1743166255419,-559.5207674,0.00045205,120]
[356778316,1743166255428,-500.0,0.00045205,120]
[356778317,1743166255437,-500.0,0.00045205,120]
[356778318,1743166255447,-500.0,0.00045205,120]
[356778319,1743166255456,-528.00123745,0.00045205,120]
[356778320,1743166255466,-624.96302182,0.00045205,120]
[356778321,1743166255476,-500.0,0.00045205,120]
[356778322,1743166255485,-500.0,0.00045205,120]
[356778323,1743166255495,-500.0,0.00045205,120]
[356778324,1743166255504,-565.69383536,0.00045205,120]
[356778325,1743166255513,-500.0,0.00045205,120]
[356778326,1743166255523,-613.17569974,0.00045205,120]
[356778327,1743166255532,-500.0,0.00045205,7]
[356778328,1743166255541,-500.0,0.00045205,120]
[356778329,1743166255551,-586.35053891,0.00045205,120]
[356778330,1743166255661,-500.0,0.00045205,120]
[356778331,1743166255671,-500.0,0.00045205,120]
[356778332,1743166255681,-592.35508269,0.00045205,120]
[356778333,1743166255690,-514.5691105,0.00045205,120]
[356778334,1743166255700,-209.14597431,0.00045205,120]
[356778335,1743166255710,-500.0,0.00045205,120]
[356778336,1743166255720,-500.0,0.00045205,120]
[356778337,1743166255729,-500.0,0.00045205,120]
[356778338,1743166255739,-500.0,0.00045205,120]
[356778339,1743166255749,-500.0,0.00045205,120]
[356778340,1743166255758,-500.0,0.00045205,120]
[356778341,1743166255768,-626.50425773,0.00045205,120]
[356778342,1743166255778,-500.0,0.00045205,120]
[356778343,1743166255788,-545.21554177,0.00045205,120]
[356778344,1743166255798,-2000.0,0.00045205,2]
[356778345,1743166255807,-2008.812946,0.00045205,2]
[356778346,1743166255817,-500.0,0.00045205,120]
[356778347,1743166255827,-500.0,0.00045205,120]
[356778348,1743166255836,-500.0,0.00045205,120]
[356778349,1743166255845,-552.85944464,0.00045205,120]
[356778350,1743166255855,-500.0,0.00045205,120]
[356778351,1743166255865,-525.60983103,0.00045205,120]
[356778352,1743166255874,-500.0,0.00045205,120]
[356778353,1743166255884,-500.0,0.00045205,120]
[356778354,1743166255893,-545.91408392,0.00045205,120]
[356778355,1743166255903,-503.13798935,0.00045205,120]
[356778356,1743166255912,-500.0,0.00045205,120]
[356778357,1743166255922,-500.0,0.00045205,120]
[356778358,1743166255931,-562.0672343,0.00045205,120]
[356778359,1743166255941,-500.0,0.00045205,120]
[356778360,1743166255950,-500.0,0.00045205,120]
[356778361,1743166255959,-536.73434198,0.00045205,120]
[356778362,1743166255970,-529.21896462,0.00045205,120]
[356778363,1743166255979,-500.0,0.00045205,120]
[356778364,1743166255988,-500.0,0.00045205,120]
[356778365,1743166255999,-548.2891087,0.00045205,120]
[356778366,1743166256009,-500.0,0.00045205,120]
[356778367,1743166256019,-500.0,0.00045205,120]
[356778368,1743166256030,-500.0,0.00045205,120]
[356778369,1743166256040,-500.0,0.00045205,120]
[356778370,1743166256050,-530.23359939,0.00045205,120]
[356778371,1743166256060,-549.55136209,0.00045205,120]
[356778372,1743166256069,-500.0,0.00045205,120]
[356778373,1743166256079,-500.0,0.00045205,120]
[356778374,1743166256089,-500.0,0.00045205,120]
[356778375,1743166256099,-389.91803077,0.00045205,120]
[356778376,1743166256113,-500.0,0.00045205,120]
[356778377,1743166256123,-561.85019631,0.00045205,120]
[356778378,1743166256132,-500.0,0.00045205,120]
[356778379,1743166256141,-549.1653497,0.00045205,120]
[356778380,1743166256150,-500.0,0.00045205,120]
[356778381,1743166256160,-499.96707626,0.00045205,120]
[356778382,1743166256170,-500.0,0.00045205,120]
[356778383,1743166256181,-546.80576189,0.00045205,120]
[356778384,1743166256191,-500.0,0.00045205,120]
[356778385,1743166256201,-521.05790161,0.00045205,120]
[356778386,1743166256211,-500.0,0.00045205,120]
[356778387,1743166256223,-500.0,0.00045205,120]
[356778388,1743166256232,-565.74455022,0.00045205,120]
[356778389,1743166256242,-536.25868704,0.00045205,120]
[356778390,1743166256251,-500.0,0.00045205,120]
[356778391,1743166256261,-503.80494213,0.00045205,120]
[356778392,1743166256271,-500.0,0.00045205,120]
[356778393,1743166256280,-500.0,0.00045205,120]
[356778394,1743166256289,-529.41374866,0.00045205,120]
[356778395,1743166256299,-500.0,0.00045205,120]
[356778396,1743166256309,-535.54216221,0.00045205,120]
[356778397,1743166256319,-500.0,0.00045205,120]
[356778398,1743166256328,-249.8493,0.00045205,120]
[356778399,1743166256338,-500.0,0.00045205,120]
[356778400,1743166256347,-500.0,0.00045205,120]
[356778401,1743166256356,-524.59774063,0.00045205,120]
[356778402,1743166256365,-500.0,0.00045205,120]
[356778403,1743166256375,-556.10404357,0.00045205,120]
[356778404,1743166256385,-529.95319592,0.00045205,120]
[356778405,1743166256394,-500.0,0.00045205,120]
[356778406,1743166256403,-500.0,0.00045205,120]
[356778407,1743166256413,-571.63914934,0.00045205,120]
[356778408,1743166256423,-1000.0,0.00045205,120]
[356778409,1743166256433,-500.0,0.00045205,120]
[356778410,1743166256443,-538.21513955,0.00045205,120]
[356778411,1743166256453,-1000.0,0.00045205,120]
[356778412,1743166256462,-573.31483588,0.00045205,120]
[356778413,1743166256473,-1000.0,0.00045205,120]
[356778414,1743166256482,-1000.0,0.00045205,120]
[356778415,1743166256492,-500.0,0.00045205,120]
[356778416,1743166256502,-1000.0,0.00045205,120]
[356778417,1743166256511,-258.62400924,0.00045205,120]
[356778418,1743166256522,-1000.0,0.00045205,120]
[356778419,1743166256532,-1000.0,0.00045205,120]
[356778420,1743166256542,-1000.0,0.00045205,120]
[356778421,1743166256552,-500.0,0.00045205,120]
[356778422,1743166256563,-1000.0,0.00045205,120]
[356778423,1743166256572,-500.0,0.00045205,120]
[356778424,1743166256582,-1000.0,0.00045205,120]
[356778425,1743166256592,-529.45380928,0.00045205,120]
[356778426,1743166256602,-684.15526116,0.00045205,120]
[356778427,1743166256611,-500.0,0.00045205,120]
[356778428,1743166256621,-161.28688864,0.00045205,120]
[356778429,1743166256631,-500.0,0.00045205,120]
[356778430,1743166256641,-500.0,0.00045205,120]
[356778431,1743166256650,-548.20346357,0.00045205,120]
[356778432,1743166256660,-500.0,0.00045205,120]
[356778433,1743166256669,-500.0,0.00045205,120]
[356778434,1743166256681,-500.0,0.00045205,120]
[356778435,1743166256691,-500.0,0.00045205,120]
[356778436,1743166256701,-500.0,0.00045205,120]
[356778437,1743166256711,-500.0,0.00045205,120]
[356778438,1743166256721,-500.0,0.00045205,120]
[356778439,1743166256732,-535.30477053,0.00045205,120]
[356778440,1743166256742,-500.0,0.00045205,120]
[356778441,1743166256751,-500.0,0.00045205,120]
[356778442,1743166256761,-500.0,0.00045205,120]
[356778443,1743166256771,-600.53909365,0.00045205,120]
[356778444,1743166256781,-500.0,0.00045205,120]
[356778445,1743166256791,-500.0,0.00045205,120]
[356778446,1743166256800,-500.0,0.00045205,120]
[356778447,1743166256809,-500.0,0.00045205,120]
[356778448,1743166256819,-500.0,0.00045205,120]
[356778449,1743166256828,-257.6126416,0.00045205,120]
[356778450,1743166256838,-500.0,0.00045205,120]
[356778451,1743166256847,-540.64556422,0.00045205,120]
[356778452,1743166256857,-500.0,0.00045205,120]
[356778453,1743166256866,-518.15028277,0.00045205,120]
[356778454,1743166256876,-518.25473789,0.00045205,120]
[356778455,1743166256886,-500.0,0.00045205,120]
[356778456,1743166256895,-500.0,0.00045205,120]
[356778457,1743166256905,-500.0,0.00045205,120]
[356778458,1743166256915,-583.62307399,0.00045205,120]
[356778459,1743166256925,-500.0,0.00045205,120]
[356778460,1743166256937,-185.72735497,0.00045205,120]
[356778461,1743166256947,-500.0,0.00045205,120]
[356778462,1743166256957,-527.96057322,0.00045205,120]
[356778463,1743166256967,-312.80737269,0.00045205,120]
[356778464,1743166256976,-500.0,0.00045205,120]
[356778465,1743166256986,-500.0,0.00045205,120]
[356778466,1743166256996,-500.0,0.00045205,120]
[356778467,1743166257005,-528.48875004,0.00045205,120]
[356778468,1743166257014,-500.0,0.00045205,120]
[356778469,1743166257023,-500.0,0.00045205,120]
[356778470,1743166257032,-500.0,0.00045205,120]
[356778471,1743166257042,-500.0,0.00045205,120]
[356778472,1743166257051,-500.0,0.00045205,120]
[356778473,1743166257060,-500.0,0.00045205,120]
[356778474,1743166257070,-575.69454961,0.00045205,120]
[356778475,1743166257080,-500.0,0.00045205,120]
[356778476,1743166257090,-500.0,0.00045205,120]
[356778477,1743166257100,-500.0,0.00045205,120]
[356778478,1743166257112,-500.0,0.00045205,120]
[356778479,1743166257122,-500.0,0.00045205,120]
[356778480,1743166257131,-500.0,0.00045205,120]
[356778481,1743166257140,-521.76445809,0.00045205,120]
[356778482,1743166257151,-225.51954965,0.00045205,120]
[356778483,1743166257160,-500.0,0.00045205,120]
[356778484,1743166257169,-500.0,0.00045205,120]
[356778485,1743166257179,-500.0,0.00045205,120]
[356778486,1743166257188,-533.79499252,0.00045205,120]
[356778487,1743166257197,-541.14432297,0.00045205,120]
[356778488,1743166257207,-500.0,0.00045205,120]
[356778489,1743166257217,-549.30675535,0.00045205,120]
[356778490,1743166257226,-500.0,0.00045205,120]
[356778491,1743166257235,-261.54363496,0.00045205,120]
[356778492,1743166257244,-500.0,0.00045205,120]
[356778493,1743166257253,-551.27828952,0.00045205,120]
[356778494,1743166257263,-500.0,0.00045205,120]
[356778495,1743166257272,-500.0,0.00045205,120]
[356778496,1743166257281,-529.33155355,0.00045205,120]
[356778497,1743166257291,-500.0,0.00045205,120]
[356778498,1743166257300,-522.27885871,0.00045205,120]
[356778499,1743166257310,-500.0,0.00045205,120]
[356778500,1743166257320,-336.57868135,0.00045205,120]
[356778501,1743166257330,-1105.82,0.00045205,120]
[356778502,1743166257339,-1105.82,0.00045205,120]
[356778503,1743166257348,-1105.82,0.00045205,120]
[356778504,1743166257358,-1105.82,0.00045205,120]
[356778505,1743166257367,-1105.82,0.00045205,120]
[356778506,1743166257377,-1105.82,0.00045205,120]
[356778507,1743166257387,-1105.82,0.00045205,120]
[356778508,1743166257396,-1105.82,0.00045205,120]
[356778509,1743166257406,-1105.82,0.00045205,120]
[356778510,1743166257415,-500.0,0.00045205,120]
[356778511,1743166257425,-1105.82,0.00045205,120]
[356778512,1743166257435,-535.31673524,0.00045205,120]
[356778513,1743166257444,-1105.82,0.00045205,120]
[356778514,1743166257454,-1105.82,0.00045205,120]
[356778515,1743166257464,-1105.82,0.00045205,120]
[356778516,1743166257475,-1105.82,0.00045205,120]
[356778517,1743166257485,-500.0,0.00045205,120]
[356778518,1743166257495,-1105.82,0.00045205,120]
[356778519,1743166257505,-500.0,0.00045205,120]
[356778520,1743166257515,-1105.82,0.00045205,120]
[356778521,1743166257524,-512.76205618,0.00045205,120]
[356778522,1743166257630,-1105.82,0.00045205,120]
[356778523,1743166257641,-1105.82,0.00045205,120]
[356778524,1743166257650,-1105.82,0.00045205,120]
[356778525,1743166257660,-1105.82,0.00045205,120]